bitfinex-derivatives/quotes_ETHF0:USTF0_20230403
["timestamp","ask_amount","ask_price","bid_price","bid_amount"]
[1680524366787,1.4031186,1806.6,1806.2,0.826]
[1680524367293,0.5791186,1806.5,1806.1,5.3148]
[1680524367795,2.55346423,1806.6,1806.1,5.3148]
[1680524367993,1.107,1806.4,1806.0,0.57766285]
[1680524369187,3.2078,1806.3,1806.0,0.57766285]
[1680524370095,4.3148,1806.4,1806.0,0.57766285]
[1680524372099,1.107,1806.3,1806.0,0.57766285]
[1680524373201,1.107,1806.3,1806.1,0.57766285]
[1680524376302,1.107,1806.3,1806.0,1.44418365]
[1680524376502,1.107,1806.3,1806.1,0.57766285]
[1680524376704,1.107,1806.3,1806.0,1.44418365]
[1680524377403,1.107,1806.3,1806.0,0.57766285]
[1680524378395,1.107,1806.3,1806.1,0.57766285]
[1680524383610,1.6801186,1806.5,1806.1,3.78546285]
[1680524383803,1.101,1806.5,1806.2,0.57766285]
[1680524384001,1.101,1806.5,1806.3,1.0]
[1680524384304,1.101,1806.5,1806.2,0.57766285]
[1680524384505,1.101,1806.5,1806.2,1.57766285]
[1680524384806,1.101,1806.5,1806.2,0.57766285]
[1680524385005,1.101,1806.5,1806.2,1.57766285]
[1680524385607,1.101,1806.5,1806.2,0.57766285]
[1680524386906,1.101,1806.5,1806.2,1.57766285]
[1680524387207,1.101,1806.5,1806.2,0.57766285]
[1680524387508,1.101,1806.5,1806.2,1.57766285]
[1680524387899,1.101,1806.5,1806.2,1.44418365]
[1680524390509,1.101,1806.5,1806.3,0.57766285]
[1680524390709,1.101,1806.5,1806.2,0.57766285]
[1680524392205,1.101,1806.5,1806.2,1.44418365]
[1680524392407,1.101,1806.5,1806.2,0.57766285]
[1680524393312,2.6801186,1806.5,1806.2,0.57766285]
[1680524395010,2.6861186,1806.5,1806.2,0.57766285]
[1680524397515,1.107,1806.3,1806.2,0.57766285]
[1680524397916,2.107,1806.3,1806.2,0.57766285]
[1680524398414,1.107,1806.3,1806.2,0.57766285]
[1680524398813,2.107,1806.3,1806.2,0.57766285]
[1680524399820,2.107,1806.3,1806.1,0.57766285]
[1680524400013,5.3148,1806.2,1806.1,0.57766285]
[1680524400524,2.107,1806.2,1806.1,0.8665208]
[1680524400723,1.107,1806.2,1806.1,0.8665208]
[1680524400930,1.107,1806.2,1806.1,1.44516858]
[1680524401432,1.107,1806.2,1806.1,0.8665208]
[1680524406232,1.57820935,1806.2,1806.1,0.8665208]
[1680524407935,1.57820935,1806.2,1806.1,1.15539144]
[1680524408129,2.15732795,1806.2,1806.1,1.15539144]
[1680524409035,1.57820935,1806.2,1806.1,1.15539144]
[1680524409237,1.57820935,1806.2,1806.1,1.84201328]
[1680524409535,0.47120935,1806.2,1806.1,1.84201328]
[1680524412730,1.05032795,1806.2,1806.1,1.15539144]
[1680524413647,0.47120935,1806.2,1806.1,1.84198584]
[1680524414144,1.05032795,1806.2,1806.1,1.15539144]
[1680524415448,1.05032795,1806.2,1806.1,1.84199185]
[1680524416138,1.05032795,1806.2,1806.1,1.15539144]
[1680524416645,1.05032795,1806.2,1806.1,1.84199133]
[1680524417545,0.47120935,1806.2,1806.1,1.84199133]
[1680524419148,1.05032795,1806.2,1806.1,1.15539144]
[1680524419350,1.05032795,1806.2,1806.1,1.84199694]
[1680524419542,1.05032795,1806.2,1806.1,1.15539144]
[1680524420148,2.15532795,1806.2,1806.1,1.15539144]
[1680524420947,2.70935593,1806.2,1806.1,1.15539144]
[1680524429242,0.86934563,1806.3,1806.1,4.36319144]
[1680524429448,0.41292866,1806.2,1806.1,5.76064878]
[1680524429654,0.86934563,1806.5,1806.2,1.0]
[1680524429948,0.86934563,1806.5,1806.4,0.8694724]
[1680524431255,0.86934563,1806.6,1806.4,1.9764724]
[1680524431457,0.86934563,1806.6,1806.5,1.8694724]
[1680524432655,0.86934563,1806.6,1806.5,1.90982256]
[1680524432847,0.86934563,1806.6,1806.5,0.90982256]
[1680524434662,0.86934563,1806.7,1806.5,0.90982256]
[1680524434856,0.86934563,1806.7,1806.6,0.57926085]
[1680524436965,0.86934563,1806.7,1806.6,0.61964073]
[1680524439759,0.86934563,1806.7,1806.6,0.04037988]
[1680524440258,1.69934563,1806.7,1806.6,0.04037988]
[1680524441071,0.83,1806.7,1806.6,0.04037988]
[1680524441365,1.69934563,1806.7,1806.6,0.04037988]
[1680524441664,4.90714563,1806.7,1806.6,0.04037988]
[1680524448069,4.90714563,1806.7,1806.4,0.57926085]
[1680524448369,0.826,1806.5,1806.4,0.57926085]
[1680524448571,0.826,1806.5,1806.3,0.8694724]
[1680524448572,5.01177869,1806.5,1806.3,0.57926085]
[1680524448771,1.0,1806.4,1806.3,0.57926085]
[1680524449075,1.0,1806.4,1806.2,1.44873325]
[1680524450066,6.01177869,1806.5,1806.2,1.44873325]
[1680524450668,5.01177869,1806.5,1806.3,0.57926085]
[1680524456385,4.18577869,1806.5,1806.3,0.57926085]
[1680524457180,0.97797869,1806.5,1806.4,0.83]
[1680524457389,0.10863306,1806.5,1806.4,1.6994724]
[1680524457582,0.83,1806.8,1806.4,2.98929653]
[1680524457583,1.69934563,1806.8,1806.4,2.98929653]
[1680524457782,1.69934563,1806.8,1806.6,0.57891257]
[1680524457983,0.13025686,1806.7,1806.6,0.57891257]
[1680524467188,1.5108655,1806.7,1806.5,0.57891257]
[1680524467488,1.83,1806.6,1806.5,0.57891257]
[1680524468389,2.69934563,1806.6,1806.4,0.57891257]
[1680524468690,1.0,1806.5,1806.4,0.57891257]
[1680524468885,2.69434563,1806.5,1806.3,0.57891257]
[1680524469187,0.829,1806.4,1806.3,0.57891257]
[1680524471186,0.95709244,1806.4,1806.3,0.57891257]
[1680524472088,0.95409244,1806.4,1806.3,0.57891257]
[1680524474596,1.82343807,1806.4,1806.3,0.57891257]
[1680524476295,0.99743807,1806.4,1806.3,0.57891257]
[1680524478794,1.82743807,1806.4,1806.3,0.57891257]
[1680524480697,0.99743807,1806.4,1806.3,0.57891257]
[1680524480898,1.82743807,1806.4,1806.3,0.57891257]
[1680524495725,1.0,1806.3,1806.2,0.57891257]
[1680524496226,1.12377644,1806.3,1806.2,0.57891257]
[1680524499433,0.12377644,1806.3,1806.2,0.57891257]
[1680524499628,2.69934563,1806.4,1806.2,0.57891257]
[1680524499927,1.826,1806.3,1806.2,0.57891257]
[1680524500224,2.69534563,1806.3,1806.2,0.57891257]
[1680524501228,2.98205498,1806.3,1806.2,0.57891257]
[1680524502528,2.11270935,1806.3,1806.2,0.57891257]
[1680524502930,2.98205498,1806.3,1806.1,0.57891257]
[1680524503130,0.827,1806.2,1806.1,0.57891257]
[1680524503332,1.827,1806.2,1806.1,0.57891257]
[1680524503535,2.69634563,1806.2,1806.1,0.57891257]
[1680524503731,2.69634563,1806.2,1806.0,0.86836886]
[1680524504234,1.69634563,1806.2,1806.0,0.86836886]
[1680524505823,2.49,1806.1,1805.9,0.86836886]
[1680524506128,1.825,1806.0,1805.8,0.86969775]
[1680524506429,0.825,1806.0,1805.8,0.86969775]
[1680524506733,0.825,1806.0,1805.8,1.86969775]
[1680524507125,0.825,1806.0,1805.8,0.86969775]
[1680524507530,4.90714563,1806.1,1805.8,0.86969775]
[1680524508020,0.83,1806.1,1805.9,4.07749775]
[1680524508227,0.83,1806.1,1805.9,3.2078]
[1680524508425,1.69934563,1806.1,1805.9,3.2078]
[1680524508837,1.69934563,1806.1,1805.8,1.86969775]
[1680524509038,1.69934563,1806.1,1805.8,0.86969775]
[1680524509432,0.83,1805.9,1805.8,0.86969775]
[1680524509738,0.83,1805.9,1805.7,4.07749775]
[1680524509940,0.83,1805.9,1805.8,0.86969775]
[1680524510231,0.83,1805.9,1805.7,4.07749775]
[1680524510835,0.83,1805.9,1805.8,0.86969775]
[1680524511033,0.83,1805.9,1805.7,3.2078]
[1680524511034,0.83,1805.9,1805.7,4.07749775]
[1680524511229,0.83,1805.9,1805.8,0.86969775]
[1680524511427,0.83,1805.9,1805.7,4.07749775]
[1680524511627,0.83,1805.9,1805.8,0.86969775]
[1680524515339,0.83,1805.9,1805.7,4.07749775]
[1680524516141,0.35603529,1805.8,1805.7,4.07749775]
[1680524520443,0.35603529,1805.8,1805.7,3.2078]
[1680524522044,0.35603529,1805.8,1805.7,5.19109653]
[1680524522338,0.35603529,1805.8,1805.7,4.36709653]
[1680524522537,1.69634563,1806.1,1805.7,3.2078]
[1680524522741,0.827,1806.1,1805.8,0.86936192]
[1680524523243,0.827,1806.1,1805.9,3.2078]
[1680524524543,1.43685056,1806.2,1805.9,4.0338]
[1680524524743,0.86934563,1806.2,1806.0,1.0]
[1680524525442,0.86934563,1806.2,1805.9,5.0338]
[1680524525643,0.86934563,1806.2,1806.0,1.0]
[1680524525847,0.86934563,1806.2,1805.9,5.0338]
[1680524526749,0.86934563,1806.2,1805.9,4.0338]
[1680524531252,0.11893164,1806.1,1805.9,4.90316192]
[1680524531446,1.86934563,1806.2,1805.9,4.90316192]
[1680524531750,0.86934563,1806.2,1805.9,4.90316192]
[1680524534450,1.69834563,1806.3,1805.9,4.90316192]
[1680524534655,1.69834563,1806.3,1806.0,1.0]
[1680524535351,1.69834563,1806.3,1806.0,1.86936192]
[1680524536448,1.69834563,1806.3,1806.0,0.86936192]
[1680524539345,0.86934563,1806.2,1806.0,0.86936192]
[1680524540147,1.86934563,1806.2,1806.0,0.86936192]
[1680524541550,0.86934563,1806.2,1806.0,0.86936192]
[1680524542156,1.69934563,1806.2,1806.0,0.86936192]
[1680524544653,0.86934563,1806.1,1806.0,0.86936192]
[1680524544863,1.0,1806.1,1806.0,0.86936192]
[1680524545159,2.69934563,1806.2,1806.0,0.86936192]
[1680524545348,0.86934563,1806.1,1806.0,0.86936192]
[1680524546153,0.98818311,1806.1,1806.0,0.86936192]
[1680524546353,0.11883748,1806.1,1806.0,0.86936192]
[1680524546564,0.98818311,1806.1,1806.0,0.86936192]
[1680524546855,2.69934563,1806.2,1806.0,0.86936192]
[1680524547059,0.86934563,1806.1,1806.0,0.86936192]
[1680524547763,1.69634563,1806.1,1806.0,0.86936192]
[1680524551562,2.276945,1806.1,1806.0,0.86936192]
[1680524551960,1.69634563,1806.1,1806.0,0.86936192]
[1680524552162,0.827,1806.1,1805.9,4.07716192]
[1680524552358,1.45154048,1806.0,1805.9,4.07716192]
[1680524553071,1.45154023,1806.0,1805.9,4.07716192]
[1680524557472,0.87092429,1806.0,1805.9,4.07716192]
[1680524558762,1.45159042,1806.0,1805.9,4.07716192]
[1680524558960,0.87092429,1806.0,1805.9,4.07716192]
[1680524559166,1.45159035,1806.0,1805.9,4.07716192]
[1680524559361,1.45159035,1806.0,1805.9,3.2078]
[1680524559362,0.87092429,1806.0,1805.9,3.2078]
[1680524561266,0.98966763,1806.0,1805.9,3.2078]
[1680524563271,0.98966763,1806.0,1805.9,4.36709653]
[1680524569480,1.98966763,1806.0,1805.9,4.36709653]
[1680524570384,2.81666763,1806.0,1805.9,4.36709653]
[1680524572080,2.81966763,1806.0,1805.9,4.36709653]
[1680524574386,2.81966763,1806.0,1805.9,3.2078]
[1680524576987,1.81966763,1806.0,1805.9,3.2078]
[1680524577383,2.81966763,1806.0,1805.9,3.2078]
[1680524579491,2.81966763,1806.0,1805.9,4.07904899]
[1680524579686,1.81966763,1806.0,1805.9,4.07904899]
[1680524579888,1.81966763,1806.0,1805.9,3.2078]
[1680524580287,1.81966763,1806.0,1805.9,4.07904836]
[1680524580684,1.81966763,1806.0,1805.9,3.2078]
[1680524580886,2.81966763,1806.0,1805.9,3.20353643]
[1680524581087,1.81966763,1806.0,1805.9,3.20353643]
[1680524581792,1.81693559,1806.0,1805.9,0.87130332]
[1680524581992,1.8169362,1806.0,1805.9,0.87130332]
[1680524582292,1.8169386,1806.0,1805.9,0.87130332]
[1680524582485,0.94574334,1806.0,1805.9,0.87130332]
[1680524582791,1.81693136,1806.0,1805.9,0.87130332]
[1680524582993,0.94574334,1806.0,1805.9,0.87130332]
[1680524584291,1.81694916,1806.0,1805.9,0.87130332]
[1680524584589,1.94574334,1806.0,1805.9,0.87130332]
[1680524586295,2.11022539,1806.0,1805.9,0.87130332]
[1680524586492,0.94874334,1806.0,1805.9,0.87130332]
[1680524587292,2.11022539,1806.0,1805.9,0.87130332]
[1680524589004,2.10722539,1806.0,1805.9,0.87130332]
[1680524589307,5.31502539,1806.0,1805.9,0.87130332]
[1680524589901,6.31502539,1806.0,1805.9,0.87130332]
[1680524593112,6.31502539,1806.0,1805.8,0.87130332]
[1680524593403,1.70120819,1805.9,1805.8,0.87130332]
[1680524593608,2.70120819,1805.9,1805.7,1.15929653]
[1680524593800,0.58083847,1805.8,1805.7,1.15929653]
[1680524594000,1.58083847,1805.8,1805.7,1.15929653]
[1680524594199,0.58083847,1805.8,1805.7,1.15929653]
[1680524594603,1.45204666,1805.8,1805.7,1.15929653]
[1680524595407,0.87120819,1805.8,1805.7,1.15929653]
[1680524595604,1.45202577,1805.8,1805.7,1.15929653]
[1680524595813,0.87120819,1805.8,1805.7,1.15929653]
[1680524596110,1.45195418,1805.8,1805.7,1.15929653]
[1680524596411,0.58074599,1805.8,1805.7,1.15929653]
[1680524596611,1.45195418,1805.8,1805.7,1.15929653]
[1680524597308,0.58074599,1805.8,1805.7,1.15929653]
[1680524597609,1.45195418,1805.8,1805.7,1.15929653]
[1680524598208,0.58074599,1805.8,1805.7,1.15929653]
[1680524600810,1.69620819,1805.8,1805.6,1.8460673]
[1680524601014,1.69620819,1805.8,1805.7,0.87125554]
[1680524601015,4.36928205,1805.8,1805.7,0.87125554]
[1680524601311,0.87111652,1805.8,1805.7,0.87125554]
[1680524601514,0.87111652,1805.8,1805.7,4.90905554]
[1680524601716,1.28002126,1805.9,1805.7,4.72468804]
[1680524601717,1.47851897,1805.9,1805.7,4.72468804]
[1680524602012,1.47851897,1805.9,1805.8,1.9873747]
[1680524602013,0.69930245,1805.9,1805.8,1.9873747]
[1680524603417,1.16148205,1806.1,1805.8,2.67409952]
[1680524603716,1.16148205,1806.1,1806.0,3.2078]
[1680524604215,1.16148205,1806.1,1805.9,1.70094633]
[1680524604918,1.99148205,1806.1,1805.9,0.87094633]
[1680524605114,1.0,1806.0,1805.9,0.87094633]
[1680524609213,2.16148205,1806.0,1805.9,0.87094633]
[1680524609419,1.0,1806.0,1805.9,0.87094633]
[1680524610522,2.16148205,1806.0,1805.9,0.87094633]
[1680524610725,1.0,1806.0,1805.9,0.87094633]
[1680524611019,1.12618029,1806.0,1805.9,0.87094633]
[1680524611222,0.12618029,1806.0,1805.9,0.87094633]
[1680524612118,0.12618029,1806.0,1805.9,1.69694633]
[1680524613413,1.28766234,1806.0,1805.9,1.69694633]
[1680524616120,0.12618029,1806.0,1805.9,1.69694633]
[1680524616325,0.12618029,1806.0,1805.9,0.826]
[1680524616724,0.12618029,1806.0,1805.9,1.9873747]
[1680524617120,0.12618029,1806.0,1805.9,0.826]
[1680524619123,0.12618029,1806.0,1805.9,1.69713166]
[1680524619322,0.12618029,1806.0,1805.9,0.826]
[1680524619522,0.12618029,1806.0,1805.9,1.69715963]
[1680524619720,0.12618029,1806.0,1805.9,0.826]
[1680524622122,0.12618029,1806.0,1805.9,0.83]
[1680524624522,0.12618029,1806.0,1805.8,5.1971747]
[1680524624829,1.12618029,1806.0,1805.9,0.87132648]
[1680524626032,3.11266234,1806.0,1805.9,0.87132648]
[1680524626228,3.66260772,1806.0,1805.9,0.87132648]
[1680524626528,3.11266234,1806.0,1805.9,0.87132648]
[1680524627032,3.25345984,1806.0,1805.9,0.87132648]
[1680524628134,6.46125984,1806.0,1805.9,0.87132648]
[1680524632535,6.46125984,1806.0,1805.9,1.45229224]
[1680524633441,6.46125984,1806.0,1805.9,0.58096576]
[1680524634035,6.74972792,1806.0,1805.9,0.58096576]
[1680524634235,6.74972792,1806.0,1805.8,0.58096576]
[1680524634436,1.16159779,1805.9,1805.8,0.58096576]
[1680524635436,2.82059779,1805.9,1805.8,0.58096576]
[1680524635638,4.10895013,1805.9,1805.7,0.58096576]
[1680524635830,6.19512957,1805.8,1805.7,0.58096576]
[1680524636237,5.62000293,1805.8,1805.7,0.58096576]
[1680524636541,1.0,1805.7,1805.3,1.1613747]
[1680524636741,0.83,1805.4,1805.3,1.1613747]
[1680524637242,0.83,1805.4,1805.2,1.1613747]
[1680524637445,0.827,1805.3,1805.2,1.1613747]
[1680524637644,1.827,1805.3,1805.2,1.1613747]
[1680524637833,0.827,1805.3,1805.2,1.1613747]
[1680524639137,0.827,1805.3,1805.1,1.1613747]
[1680524639333,0.827,1805.3,1805.1,1.84833055]
[1680524642049,4.0378,1805.4,1805.1,1.1613747]
[1680524642645,4.0378,1805.4,1805.1,1.84833176]
[1680524643036,4.0378,1805.4,1805.1,1.1613747]
[1680524643441,4.0378,1805.4,1805.1,1.84833165]
[1680524644152,4.0378,1805.4,1805.1,1.1613747]
[1680524644543,0.83,1805.4,1805.1,1.1613747]
[1680524645344,0.83,1805.4,1805.0,5.1991747]
[1680524645545,1.83,1805.4,1805.0,5.1991747]
[1680524646443,11.029,1805.4,1805.0,5.1991747]
[1680524646748,0.827,1805.2,1804.9,1.1613747]
[1680524646946,0.827,1805.2,1804.9,1.84836387]
[1680524647142,1.0,1805.1,1804.9,1.84836387]
[1680524647338,1.827,1805.2,1804.9,1.84836387]
[1680524647858,0.827,1805.2,1804.9,1.84836387]
[1680524648348,0.827,1805.2,1804.9,2.84836387]
[1680524648550,0.827,1805.2,1804.9,2.1613747]
[1680524648742,0.827,1805.2,1804.9,1.1613747]
[1680524648943,0.827,1805.2,1804.9,2.84836511]
[1680524649247,0.827,1805.2,1804.9,1.1613747]
[1680524649446,0.827,1805.2,1804.9,2.84836295]
[1680524649645,0.827,1805.2,1804.9,1.1613747]
[1680524649949,0.827,1805.2,1804.9,1.84836177]
[1680524650454,0.827,1805.2,1804.9,1.1613747]
[1680524651351,0.59865393,1805.1,1804.9,1.1613747]
[1680524651546,1.827,1805.2,1804.9,1.1613747]
[1680524651750,0.827,1805.2,1804.9,1.1613747]
[1680524652053,4.0378,1805.3,1804.9,1.9853747]
[1680524654157,0.83,1805.3,1804.9,1.9853747]
[1680524654360,0.83,1805.3,1804.9,0.824]
[1680524654560,1.0,1805.2,1804.9,0.824]
[1680524655455,1.0,1805.2,1804.9,1.9853747]
[1680524655651,1.0,1805.2,1804.9,0.824]
[1680524656459,5.0378,1805.3,1804.9,0.824]
[1680524657263,1.0,1805.2,1804.9,0.824]
[1680524658564,5.0378,1805.3,1804.9,0.824]
[1680524660059,1.0,1805.2,1804.9,0.824]
[1680524662164,0.83,1805.1,1804.8,5.1931747]
[1680524665564,0.83,1805.1,1804.8,6.1931747]
[1680524665764,0.83,1805.1,1804.8,5.1931747]
[1680524666368,0.59857673,1805.0,1804.8,5.1931747]
[1680524666557,0.83,1805.1,1804.8,5.1931747]
[1680524666962,0.59857461,1805.0,1804.8,5.1931747]
[1680524667572,0.59857029,1804.9,1804.8,5.1931747]
[1680524667760,0.44590055,1804.9,1804.8,5.1931747]
[1680524667957,0.83,1805.1,1804.8,5.1931747]
[1680524668165,0.57948431,1804.9,1804.8,5.1931747]
[1680524668371,0.83,1805.1,1804.8,5.1931747]
[1680524668557,0.57948177,1805.0,1804.8,5.1931747]
[1680524668869,0.83,1805.1,1804.8,5.1931747]
[1680524669067,0.57947933,1805.0,1804.8,5.1931747]
[1680524669462,0.83,1805.1,1804.8,5.1931747]
[1680524669658,0.83,1805.1,1804.8,4.0318]
[1680524669864,0.57947534,1805.0,1804.8,4.0318]
[1680524670168,1.83,1804.9,1804.7,1.1613747]
[1680524670359,1.83,1804.9,1804.6,1.1613747]
[1680524670559,5.0378,1804.9,1804.6,1.1613747]
[1680524670771,1.0,1804.8,1804.6,1.1613747]
[1680524670970,1.0,1804.8,1804.5,1.9853747]
[1680524671569,5.0378,1804.9,1804.5,1.9853747]
[1680524672271,0.826,1804.7,1804.5,1.1613747]
[1680524673165,0.826,1804.7,1804.4,4.3691747]
[1680524673367,1.0,1804.8,1804.4,5.1931747]
[1680524673368,1.83,1804.8,1804.4,5.1931747]
[1680524673563,1.83,1804.8,1804.5,1.1613747]
[1680524673767,1.83,1804.8,1804.4,5.1931747]
[1680524674771,0.83,1804.8,1804.4,5.1931747]
[1680524674968,0.83,1804.8,1804.5,1.1613747]
[1680524675472,0.77242202,1804.7,1804.5,1.1613747]
[1680524678770,0.77242202,1804.7,1804.4,5.1931747]
[1680524678973,0.77242202,1804.7,1804.4,6.64229536]
[1680524679180,0.77242202,1804.7,1804.5,1.1613747]
[1680524679479,3.98022202,1804.7,1804.4,1.9853747]
[1680524679778,3.98022202,1804.7,1804.3,1.1613747]
[1680524679779,0.83,1804.6,1804.3,1.1613747]
[1680524679979,1.83,1804.6,1804.3,1.84857912]
[1680524681276,0.73583242,1804.5,1804.3,1.1613747]
[1680524681479,0.73583242,1804.5,1804.3,1.84858146]
[1680524683279,0.73583242,1804.5,1804.3,1.1613747]
[1680524684687,3.94363242,1804.5,1804.3,1.1613747]
[1680524685079,3.94363242,1804.5,1804.2,1.9853747]
[1680524685283,4.48871026,1804.5,1804.2,1.9853747]
[1680524686081,3.94363242,1804.5,1804.2,1.9853747]
[1680524686383,1.83,1804.4,1804.2,1.1613747]
[1680524686586,1.83,1804.4,1804.1,3.38937608]
[1680524686789,0.83,1804.2,1804.1,3.38937608]
[1680524687287,0.83,1804.2,1804.1,2.22800138]
[1680524687486,0.83,1804.2,1804.0,1.3113747]
[1680524689292,0.83,1804.2,1804.0,1.8656305]
[1680524689683,0.83,1804.2,1804.0,5.0734305]
[1680524689988,0.826,1804.4,1804.0,5.9024305]
[1680524690189,0.83,1804.1,1804.0,5.58130736]
[1680524696195,1.75763703,1804.1,1804.0,5.58130736]
[1680524696997,0.92763703,1804.1,1804.0,5.58130736]
[1680524697590,0.825,1804.3,1804.0,5.58130736]
[1680524701805,0.83,1804.1,1804.0,3.3578]
[1680524704501,0.83,1804.1,1804.0,0.15]
[1680524706106,1.75237092,1804.1,1804.0,0.15]
[1680524707595,2.75237092,1804.1,1804.0,0.15]
[1680524708106,1.75237092,1804.1,1804.0,0.15]
[1680524710101,0.92237092,1804.1,1804.0,3.3578]
[1680524710310,0.92237092,1804.1,1804.0,4.1838]
[1680524710500,2.24492652,1804.5,1804.0,4.1838]
[1680524710701,0.83,1804.5,1804.1,0.83]
[1680524711000,0.83,1804.5,1804.2,3.2078]
[1680524712200,1.099,1804.5,1804.2,3.2078]
[1680524712411,1.099,1804.5,1804.0,1.254]
[1680524712412,1.099,1804.3,1804.0,0.15]
[1680524712600,1.101,1804.1,1804.0,0.15]
[1680524712906,2.108,1804.4,1804.0,0.15]
[1680524713311,1.0,1804.4,1804.0,0.15]
[1680524713497,13.25314623,1804.6,1804.0,3.3578]
[1680524713703,3.2078,1804.5,1804.0,3.3578]
[1680524714000,1.104,1804.4,1804.0,3.3578]
[1680524714195,1.0,1804.3,1804.0,3.3578]
[1680524714608,1.101,1804.1,1804.0,0.15]
[1680524715315,2.02650568,1804.1,1804.0,0.15]
[1680524715507,0.92550568,1804.1,1804.0,0.15]
[1680524715905,5.3118,1804.3,1804.0,0.15]
[1680524716709,1.099,1804.1,1804.0,0.15]
[1680524717315,5.3088,1804.3,1804.0,0.15]
[1680524717613,1.101,1804.3,1804.0,0.15]
[1680524717809,1.101,1804.3,1804.1,3.2078]
[1680524718416,1.101,1804.3,1804.0,0.15]
[1680524719010,1.099,1804.1,1804.0,0.15]
[1680524719314,1.104,1804.1,1804.0,0.15]
[1680524719512,1.108,1804.2,1804.0,0.15]
[1680524720214,1.108,1804.1,1804.0,0.15]
[1680524720619,2.108,1804.1,1804.0,0.15]
[1680524722815,1.108,1804.1,1804.0,0.15]
[1680524723021,2.108,1804.1,1804.0,0.15]
[1680524724208,4.78482755,1804.2,1804.0,0.15]
[1680524724209,4.88582755,1804.2,1804.0,0.15]
[1680524724408,1.101,1804.2,1804.0,0.15]
[1680524724809,4.3088,1804.2,1804.0,0.15]
[1680524725322,4.88582755,1804.2,1804.0,0.15]
[1680524725819,1.101,1804.2,1804.0,0.15]
[1680524726321,4.3088,1804.2,1804.0,0.15]
[1680524726523,1.101,1804.2,1804.0,0.15]
[1680524729020,2.101,1804.2,1804.0,0.15]
[1680524729321,1.67802755,1804.2,1804.0,0.15]
[1680524730426,1.94894135,1804.1,1804.0,0.15]
[1680524732423,6.25574135,1804.1,1804.0,0.15]
[1680524732822,6.8327689,1804.1,1804.0,0.15]
[1680524734916,2.6249689,1804.1,1804.0,0.15]
[1680524735818,2.6249689,1804.1,1804.0,1.01152851]
[1680524735819,1.5259689,1804.1,1804.0,1.01152851]
[1680524738628,1.16118482,1804.5,1804.0,12.68134785]
[1680524738834,1.45148102,1804.7,1804.4,10.72514892]
[1680524738835,1.15596279,1804.7,1804.4,10.72514892]
[1680524739033,1.15596279,1804.8,1804.6,4.3148]
[1680524739230,1.15596279,1804.8,1804.7,1.099]
[1680524739430,1.15596279,1804.8,1804.6,1.107]
[1680524739731,2.15596279,1804.8,1804.6,1.107]
[1680524739936,5.36376279,1804.8,1804.6,1.107]
[1680524740634,1.15596279,1804.8,1804.6,1.107]
[1680524741836,1.15596279,1804.9,1804.6,1.107]
[1680524742037,1.15596279,1804.9,1804.6,4.3148]
[1680524744134,4.92369759,1805.0,1804.6,4.3148]
[1680524745741,1.15596279,1805.0,1804.8,1.104]
[1680524746330,1.15596279,1805.1,1804.8,1.104]
[1680524746731,1.15596279,1805.0,1804.8,1.104]
[1680524746932,2.15596279,1805.1,1804.8,1.104]
[1680524747238,1.15596279,1805.1,1804.8,1.104]
[1680524747438,1.15596279,1805.2,1805.0,1.107]
[1680524747638,1.15596279,1805.3,1805.1,1.104]
[1680524748140,3.2078,1805.4,1805.1,1.104]
[1680524748141,4.36376279,1805.4,1805.1,1.104]
[1680524748343,4.36376279,1805.4,1805.1,2.104]
[1680524748731,3.2078,1805.4,1805.1,2.104]
[1680524748942,4.3088,1805.2,1804.6,0.87134892]
[1680524749141,4.3088,1805.2,1804.5,4.36959856]
[1680524749142,4.3088,1805.0,1804.5,3.2078]
[1680524749347,1.101,1805.0,1804.6,2.107]
[1680524749639,4.3158,1805.2,1804.8,1.099]
[1680524749835,1.108,1805.2,1804.8,1.099]
[1680524750236,4.3158,1805.2,1804.8,1.099]
[1680524752137,4.3158,1805.2,1804.9,1.107]
[1680524752138,3.2078,1805.2,1804.9,1.107]
[1680524754239,4.3068,1805.2,1804.7,4.3118]
[1680524754443,3.2078,1805.0,1804.7,1.104]
[1680524757142,4.3088,1805.0,1804.5,4.3118]
[1680524760349,0.13858436,1804.9,1804.5,4.3118]
[1680524760547,1.13858436,1804.9,1804.5,4.3118]
[1680524760753,0.13858436,1804.9,1804.5,4.3118]
[1680524762255,1.23758436,1804.9,1804.5,3.2078]
[1680524763555,2.23758436,1804.9,1804.5,3.2078]
[1680524763851,1.23758436,1804.9,1804.5,3.2078]
[1680524764049,4.2078,1804.8,1804.4,1.107]
[1680524764447,4.2078,1804.8,1804.3,3.78630682]
[1680524764448,3.2078,1804.6,1804.3,1.099]
[1680524765143,2.108,1804.5,1804.1,3.78630682]
[1680524765640,1.108,1804.5,1804.1,4.88530682]
[1680524769567,3.2078,1804.4,1804.1,1.67750682]
[1680524769758,1.0,1804.3,1804.1,1.099]
[1680524770156,1.099,1804.3,1804.0,0.72253917]
[1680524770462,1.0,1804.2,1804.0,0.72253917]
[1680524770656,1.0,1804.2,1804.0,0.14403235]
[1680524770855,2.099,1804.3,1804.0,0.14403235]
[1680524771855,1.099,1804.3,1804.0,0.14403235]
[1680524773262,3.2078,1804.2,1804.0,0.14403235]
[1680524775365,0.35349656,1804.1,1804.0,0.14403235]
[1680524775755,3.2078,1804.2,1804.0,0.14403235]
[1680524776463,1.099,1804.1,1804.0,0.14403235]
[1680524786866,2.099,1804.1,1804.0,0.14403235]
[1680524787470,1.099,1804.1,1804.0,0.14403235]
[1680524787672,2.099,1804.1,1804.0,0.14403235]
[1680524788374,2.101,1804.1,1804.0,0.14403235]
[1680524789474,2.108,1804.1,1804.0,0.14403235]
[1680524790576,2.108,1804.1,1803.6,1.68550682]
[1680524790577,2.67699808,1804.1,1803.6,1.68550682]
[1680524790767,1.0,1803.9,1803.6,1.68550682]
[1680524791577,3.2078,1804.0,1803.6,1.68550682]
[1680524792076,4.3068,1804.0,1803.6,0.57850682]
[1680524792281,4.3068,1804.0,1803.5,5.76165574]
[1680524792870,4.3068,1804.0,1803.5,4.89030682]
[1680524794475,4.86569434,1804.0,1803.5,4.89030682]